Cogmind - Beta 13 @@@ ROGUE MODE // 2024.07.16 @ 00:04:35 Player: Sgt. SmokeWeed Result: Destroyed by G-47 Trooper with Particle Gun Performance ------------- Evolutions (1) 500 Regions Visited (4) 800 Robots Destroyed (49) 245 Value Destroyed (1058) 1058 Prototype IDs (1) 20 Alien Tech Used (0) 0 Bonus (-92) -92 TOTAL SCORE: 2531 Bonus ------- High Alert Combat Kills 73 Follower Combat Kills 85 Friendly Fire -250 Cogmind --------- Core Integrity 0/400 Matter 158/300 Energy 113/125 System Corruption 0% Temperature Cool (42) Movement Core (150) Ox2 Location -9/Mines Parts ------- > --- POWER (1) -------- Light Ion Engine > --- PROPULSION (2) --- (None) > --- UTILITY (2) ------ Improved Targeting Computer > --- WEAPON (4) ------- Beam Cannon Mini Grenade Launcher > --- INVENTORY (5) ---- Hacking Suite Peak State ------------ > --- POWER ------------ Light Nuclear Core > --- PROPULSION ------- Aluminum Leg Aluminum Leg > --- UTILITY ---------- Improved Targeting Computer Improved Targeting Computer > --- WEAPON ----------- Autogun Autogun Autogun Grenade Launcher > --- INVENTORY -------- Hacking Suite Thief Drone Bay [Rating: 17] Favorites ----------- Power Ion Engine Engine Ion Engine Power Core Light Nuclear Core Propulsion Aluminum Leg Leg Aluminum Leg Flight Unit Flight Unit Utility Improved Targeting Computer Device Thief Drone Bay Processor Improved Targeting Computer Weapon Autogun Energy Gun Small Laser Energy Cannon Beam Cannon Ballistic Gun Autogun Launcher Grenade Launcher Build | -11 -10 -10 -9 -9 ------- Run | Yrd Mat Min Mat Min Slots Evolved 2 | . . . 2 . Power . | . . . . . Propulsion . | . . . . . Utility . | . . . . . Weapon 2 | . . . 2 . Parts Attached 30 | 5 14 . 4 7 Power 4 | 1 1 . 1 1 Engine 3 | 1 1 . . 1 Core 1 | . . . 1 . Reactor . | . . . . . Propulsion 10 | 2 5 . . 3 Treads . | . . . . . Leg 8 | 2 5 . . 1 Wheel . | . . . . . Hover . | . . . . . Flight 2 | . . . . 2 Utility 3 | . 2 . . 1 Device 1 | . . . . 1 Storage . | . . . . . Processor 2 | . 2 . . . Hackware . | . . . . . Protection . | . . . . . Artifact . | . . . . . Weapon 13 | 2 6 . 3 2 Energy Gun 3 | 2 1 . . . Energy Cannon 1 | . . . . 1 Ballistic Gun 7 | . 4 . 3 . Ballistic Cannon . | . . . . . Launcher 2 | . 1 . . 1 Special Weapon . | . . . . . Impact Weapon . | . . . . . Slashing Weapon . | . . . . . Piercing Weapon . | . . . . . Special Melee Weapon . | . . . . . Unidentified Prototypes 1 | . . . . 1 Parts Lost 13 | . 1 . 2 10 Power 2 | . . . 1 1 Propulsion 4 | . . . . 4 Utility 1 | . . . . 1 Weapon 6 | . 1 . 1 4 Highest Loss Streak 8 | . 1 . 1 8 To Critical Strikes . | . . . . . Average Slot Usage (%) 87 | . 84 100 98 57 Engine 9 | . 14 14 3 5 Core 2 | . . . 7 1 Leg 23 | . 28 28 22 5 Flight 1 | . . . . 9 Processor 19 | . 14 28 22 12 Energy Gun 3 | . 8 . . . Ballistic Gun 18 | . 15 14 31 5 Launcher 8 | . 2 14 11 10 Naked Turns . | . . . . . Heaviest Build 17 | 8 11 11 17 17 Greatest Support 20 | 20 20 20 20 20 Greatest Overweight (x) 2 | . . . . 2 Average Overweight (x) . | . . . . . Largest Inventory Capacity 5 | 5 5 5 5 5 Average Capacity 5 | 5 5 5 5 5 Most Carried 4 | . 3 4 3 2 Average Carried 1 | . . 3 1 1 Final Capacity 5 | 5 5 5 5 5 Final Carried 4 | . 3 4 2 1 Class Distribution -------------------- 69% | Mutant 30% | Gunner Dominant Class ---------------- Mutant | -10/Materials Mutant | -10/Mines Gunner | -9/Materials Mutant | -9/Mines Resources | -11 -10 -10 -9 -9 ----------- Run | Yrd Mat Min Mat Min Matter Collected 1160 | 211 308 40 261 340 Remotely . | . . . . . Salvage Created 1316 | . 443 40 578 255 Parts 105 | . 30 7 56 12 Haulers Intercepted 2 | . 1 . 1 . Recyclers Shooed . | . . . . . Parts Field Recycled . | . . . . . Retrieved Matter . | . . . . . Parts Self-Destructed . | . . . . . Prevented . | . . . . . Kills | -11 -10 -10 -9 -9 ------- Run | Yrd Mat Min Mat Min Combat Hostiles Destroyed 38 | . 6 4 14 14 Guns 18 | . 6 2 9 1 AOE 20 | . . 2 5 13 Classes Destroyed 13 | . 5 1 4 3 Worker 3 | . 2 . 1 . Builder 1 | . . . 1 . Tunneler 2 | . . . 1 1 Hauler 2 | . 1 . 1 . Recycler 2 | . . . . 2 Operator 3 | . 1 . 2 . Watcher 5 | . 3 . 2 . Swarmer 11 | . . 4 4 3 Grunt 15 | . 6 . 8 1 Sentry 2 | . . . 2 . Demolisher 1 | . . . . 1 Zionite 1 | . . . 1 . Assembled 9 | . . . . 9 Thug 1 | . . . 1 . Best Kill Streak 7 | . 4 2 7 5 Combat Bots Only 5 | . 2 2 5 4 Max Kills in Single Turn 4 | . 2 2 2 4 Gunslinging . | . . . . . Exploded 3 | . . 2 1 3 Melee . | . . . . . Uniques/NPCs Destroyed . | . . . . . Combat | -11 -10 -10 -9 -9 -------- Run | Yrd Mat Min Mat Min Hostile Shots Fired 140 | . 31 15 35 59 Missed 41 | . 9 2 16 14 Damage Taken 1666 | . 304 100 412 850 Core 470 | . 46 24 142 258 Absorbed by Shields . | . . . . . Core Remaining (%) 86 | 100 . 72 . . Volleys Fired 97 | . 40 9 29 19 Largest 4 | . 2 2 4 4 Hottest 99 | . 80 53 99 99 Shots Fired 203 | . 66 10 95 32 Gun 162 | . 65 9 82 6 Cannon 7 | . . . . 7 Launcher 34 | . 1 1 13 19 Special . | . . . . . Kinetic 131 | . 34 9 82 6 Thermal 29 | . 22 . . 7 Explosive 34 | . 1 1 13 19 Electromagnetic 9 | . 9 . . . Robot Hit Streak 13 | . 13 4 8 4 Robot Miss Streak 5 | . 5 2 2 1 Penetration Max . | . . . . . Secondary Targets 1 | . 1 . . . Max Gunslinging Chain 1 | . 1 . . . Shots Hit Robots 95 | . 36 5 38 16 Core Hits 93 | . 20 4 37 32 Critical Kills . | . . . . . Critical Parts Destroyed . | . . . . . Critical Strikes . | . . . . . Melee Attacks . | . . . . . Impact . | . . . . . Slashing . | . . . . . Piercing . | . . . . . Sneak Attacks . | . . . . . Combat Hostiles . | . . . . . Follow-up Attacks . | . . . . . Damage Inflicted 3416 | . 601 151 1377 1287 Guns 1344 | . 585 67 649 43 Cannons 53 | . . . . 53 Explosions 1995 | . . 82 722 1191 Melee . | . . . . . Ramming 24 | . 16 2 6 . Kinetic 1065 | . 306 67 649 43 Thermal 396 | . 173 . 170 53 Explosive 1825 | . . 82 552 1191 Electromagnetic 106 | . 106 . . . Impact . | . . . . . Slashing . | . . . . . Piercing . | . . . . . Highest Corruption . | . . . . . Average Corruption . | . . . . . Corruption Purged . | . . . . . Corruption Blocked . | . . . . . Overload Shots . | . . . . . Overflow Damage 195 | . . . 143 52 Projectiles . | . . . . . Explosions 195 | . . . 143 52 Melee . | . . . . . Knockbacks . | . . . . . Impact . | . . . . . Kinetic . | . . . . . Secondary . | . . . . . Self-Inflicted Damage 263 | . . . 215 48 Shots 4 | . . . 3 1 Rammed . | . . . . . Targets Rammed 5 | . 3 1 1 . Kicked 5 | . 3 1 1 . Crushed . | . . . . . Highest Temperature 216 | . 216 12 144 124 Average Temperature 49 | . 61 4 36 59 Received Heat Transfer 263 | . 186 . 36 41 Siege Activations . | . . . . . Robots Corrupted . | . . . . . Combat Hostiles . | . . . . . Parts Fried . | . . . . . Impact Corruptions . | . . . . . Robots Melted . | . . . . . Combat Hostiles . | . . . . . Parts Melted 1 | . 1 . . . Heat Transferred 661 | . 400 . 150 111 Parts Sabotaged . | . . . . . Parts Stolen . | . . . . . Parts Stripped . | . . . . . Power Chain Reactions . | . . . . . Alert | -11 -10 -10 -9 -9 ------- Run | Yrd Mat Min Mat Min Peak Influence 619 | . 231 225 619 360 Initial 241 | . . 31 87 241 Average 196 | . 93 55 407 285 Maximum Alert Level 2 | . 1 1 2 1 Low Security (%) 59 | 100 90 95 12 16 Level 1 22 | . 9 4 23 83 Level 2 17 | . . . 63 . Level 3 . | . . . . . Level 4 . | . . . . . Level 5 . | . . . . . High Security . | . . . . . Max Security . | . . . . . Squads Dispatched 6 | . 2 . 4 . Investigation 2 | . . . 2 . Extermination . | . . . . . Reinforcement 4 | . 2 . 2 . Assault . | . . . . . Garrison . | . . . . . Intercept . | . . . . . Searches Triggered . | . . . . . Construction Impeded . | . . . . . Haulers Reinforced . | . . . . . Active Scanning Responses . | . . . . . Cargo Convoy Interrupts . | . . . . . Stealth | -11 -10 -10 -9 -9 --------- Run | Yrd Mat Min Mat Min Distress Signals 5 | . 1 . 4 . Communications Jammed . | . . . . . Distress Signals . | . . . . . Times Spotted 64 | . 13 3 23 25 Peak Tracking Total 15 | . 3 3 7 15 Tactical Retreats 2 | . . . . 2 Traps | -11 -10 -10 -9 -9 ------- Run | Yrd Mat Min Mat Min Traps Triggered 3 | . 3 . . . Indirectly . | . . . . . Trap Hack Attempts . | . . . . . Triggered . | . . . . . Disarmed . | . . . . . Reprogrammed . | . . . . . Reused . | . . . . . Traps Extracted . | . . . . . Installed . | . . . . . Triggered . | . . . . . Machines | -11 -10 -10 -9 -9 ---------- Run | Yrd Mat Min Mat Min Machines Disabled 9 | . 1 2 5 1 Max in Single Turn 3 | . 1 2 3 1 Machines Repaired . | . . . . . Machines Dismantled . | . . . . . Machines Sabotaged . | . . . . . Overloaded Fab Kills . | . . . . . Hacking | -11 -10 -10 -9 -9 --------- Run | Yrd Mat Min Mat Min Machines Accessed 5 | . 1 1 3 . Terminals 4 | . 1 . 3 . Fabricators . | . . . . . Repair Stations . | . . . . . Recycling Units . | . . . . . Scanalyzers . | . . . . . Garrison Access . | . . . . . Total Hacks 9 | . 1 1 7 . Successful 3 | . 1 1 1 . Failed 6 | . . . 6 . Catastrophic 4 | . . . 4 . Database Lockouts . | . . . . . Manual 9 | . 2 . 7 . Terminals 8 | . 1 . 7 . Fabricators . | . . . . . Repair Stations . | . . . . . Recycling Units . | . . . . . Scanalyzers . | . . . . . Garrison Access . | . . . . . Terminal Hacks 3 | . 1 1 1 . Open Door 1 | . . 1 . . Branch Access Points 2 | . 1 . 1 . Fabricator Hacks . | . . . . . Repair Station Hacks . | . . . . . Recycling Unit Hacks . | . . . . . Scanalyzer . | . . . . . Garrison Access Hacks . | . . . . . Unauthorized Hacks . | . . . . . Terminals . | . . . . . Fabricators . | . . . . . Repair Stations . | . . . . . Recycling Units . | . . . . . Scanalyzers . | . . . . . Garrison Access . | . . . . . Data Cores Recovered . | . . . . . Used . | . . . . . Hacking Detections 3 | . . . 3 . Full Trace Events 3 | . . . 3 . Feedback Events . | . . . . . Feedback Blocked . | . . . . . Robot Schematics Acquired . | . . . . . Robots Built . | . . . . . Authchips . | . . . . . Time . | . . . . . Total Robot Build Rating . | . . . . . Part Schematics Acquired . | . . . . . Parts Built . | . . . . . Authchips . | . . . . . Time . | . . . . . Total Part Build Rating . | . . . . . Parts Repaired . | . . . . . Time . | . . . . . Parts Recycled . | . . . . . Recycled Matter . | . . . . . Retrieved Matter . | . . . . . Retrieved Components . | . . . . . Parts Scanalyzed . | . . . . . Part Schematics Acquired . | . . . . . Parts Damaged . | . . . . . Bothacking | -11 -10 -10 -9 -9 ------------ Run | Yrd Mat Min Mat Min Used RIF Installer . | . . . . . Robots Hacked . | . . . . . Non-combat . | . . . . . Combat . | . . . . . Robot Hacks Applied . | . . . . . Relay Couplers Released . | . . . . . Fabnet Peak Effective % . | . . . . . Robots Rewired . | . . . . . Allies Hacked . | . . . . . Hacks Repelled . | . . . . . Allies | -11 -10 -10 -9 -9 -------- Run | Yrd Mat Min Mat Min Total Allies 2 | . . 2 . . Largest Group 2 | . . 2 2 . Highest-Rated Group 43 | . . 43 43 . Highest-Rated Ally 31 | . . 31 31 . Total Orders . | . . . . . Ally Attacks 30 | . . 6 18 6 Total Damage 235 | . . 38 168 29 Kills 7 | . . 2 4 1 Allies Corrupted . | . . . . . Allies Melted . | . . . . . Intel | -11 -10 -10 -9 -9 ------- Run | Yrd Mat Min Mat Min Robot Analysis Total . | . . . . . Derelict Logs Recovered 2 | . . 1 . 1 Drone Launches 3 | . . . . 3 Drone Recoveries . | . . . . . Exploration | -11 -10 -10 -9 -9 ------------- Run | Yrd Mat Min Mat Min Turns Passed 1747 | 57 639 323 481 247 Spaces Moved 1348 | 48 426 254 325 295 Core 44 | 11 . . . 33 Treads . | . . . . . Legs 1110 | 37 426 254 325 68 Wheels . | . . . . . Hover . | . . . . . Flight 194 | . . . . 194 Fastest Speed 37 | 50 120 120 120 37 Average Speed 107 | 103 120 120 120 63 Slowest Speed 190 | 120 120 120 120 190 Overloaded Moves . | . . . . . Propulsion Burnouts . | . . . . . Robots Hopped 1 | . . . . 1 Cave-ins Triggered . | . . . . . Exploration Rate (%) 43 | 3 54 71 36 52 Regions Visited 4 Branch Regions 2 Pre-discovered Areas . | . . . . . Known Exits Taken 2 | . 1 . 1 . Unknown Exits Taken 2 | 1 . 1 . . Scrap Searched 3 | . . 1 . 2 Spaces Dug . | . . . . . Terrain Destroyed 332 | . 7 8 168 149 Melee . | . . . . . Projectile . | . . . . . AOE 332 | . 7 8 168 149 Terrain Rammed . | . . . . . Walls Destroyed . | . . . . . Machines Disabled . | . . . . . Actions | -11 -10 -10 -9 -9 --------- Run | Yrd Mat Min Mat Min Total 1495 | 52 489 264 364 326 Wait 9 | . . . 5 4 Move 1342 | 47 425 253 324 293 Hop 1 | . . . . 1 Pick Up 5 | . 3 1 1 . Fast Attach 22 | 5 10 . 1 6 Attach 4 | . . . 3 1 Detach . | . . . . . Swap 4 | . 4 . . . Drop 6 | . 4 . . 2 Fire 97 | . 40 9 29 19 Melee . | . . . . . Ram . | . . . . . Kick 5 | . 3 1 1 . Crush . | . . . . . Escape Stasis . | . . . . . Rewire . | . . . . . Trap . | . . . . . Miscellaneous . | . . . . . Route ------- -11/Scrapyard -10/Materials (discovered 2 exits: *Mat / *Min) -10/Mines -9/Materials (discovered 2 exits: *Mat / *Min) -9/Mines (discovered 1 exit: *Mat) History --------- Turn | Location | Event 18 | -11/Scrapyard | Discovered new exit (range 15) 58 | -11/Scrapyard | Entered Materials 287 | -10/Materials | Discovered new exit (range 5) 303 | -10/Materials | Build established: Mutant 480 | -10/Materials | Identified exit to Mines 697 | -10/Materials | Entered Mines 703 | -10/Mines | Found the Drone Emporium 709 | -10/Mines | Found Prototype Device 942 | -10/Mines | Found a damaged Exp. Sensor Array with a note attached 987 | -10/Mines | Learned 2 Materials zone layouts 989 | -10/Mines | Discovered new exit (range 9) 1020 | -10/Mines | Entered Materials 1020 | -9/Materials | Accompanied by 2 allies 1020 | -9/Materials | Evolved 2 slots: Weapon x2 1021 | -9/Materials | Identified exit to Materials 1025 | -9/Materials | Led the pair of lost Derelicts to an unsafe place 1321 | -9/Materials | Build established: Gunner 1374 | -9/Materials | Identified exit to Mines 1501 | -9/Materials | Entered Mines 1514 | -9/Mines | Assembled infested the area 1519 | -9/Mines | Assisted by a Guerilla fighting off Assembled 1530 | -9/Mines | Found a hidden stash of uninstalled traps 1546 | -9/Mines | Core integrity fell below 50% 1549 | -9/Mines | Identified Thief Drone Bay 1577 | -9/Mines | Lost 8 parts (1p2n1u4w) 1585 | -9/Mines | Discovered exit to Materials (range 16) 1594 | -9/Mines | Lost 4 allies 1668 | -9/Mines | Core integrity fell below 20% 1740 | -9/Mines | Learned Materials security intel 1748 | -9/Mines | Destroyed by G-47 Trooper with Particle Gun Last Messages --------------- Acquired 28 matter. Acquired 20 matter. as-56416 destroyed. Core Extractor disabled. R-06 Scavenger destroyed. Flight Unit destroyed. as-81303 destroyed. as-62498 destroyed. as-16341 destroyed. Dropped Flight Unit. The unstable cave ceiling collapses. Acquired 38 matter. Acquired Flexi-carbon Leg. Acquired 34 matter. Extracted 50 matter. Acquired 5 matter. Acquired derelict log, extracted data. Data stored: Materials security intel. Flexi-carbon Leg destroyed. G-34 Mercenary destroyed. Map ----- +----------------------------------------------------+ | ????# ??## ????# ??????????????????# #?? | | ????# #?# #????# #???????#####??????# ### | | ?????# ## ###??# #?????### #####??# ## | | ??????# #??# #????## # #### | | ???????# ! #??# #?#### # # | | ?###???## #??# ### ## | | ## ##??## #### # | | #?## # # # ## % % | | ## * # ## | | %! = ! ## # # | | ### ! ! ! = [ ##### # | | ????## = ## ### ##??## # | | ?????# ## ##?# ! #???###### # | | ?????# #### #### ###??# ####### | | ?????# ############????# # ## ## % | | ?????# ##???### # ###### ## | | ?????# ##???# # | | ?????# ## #### ##??# | | ?????## ### #??## #??## | | ??????######?# #???## #???# # =# | | ?????????????# #????## ##???### # # | | ?????????????# #?????## #??????# #### # # # | | ?????????????# #??????# #??????## #?##### ##### | | ????????????? #??????# ###?????## ############# | | ?????????????###??????# #??????# # # ## | | ??????????????????????###@#??????#### ## # | | ????????????????????????# #?????????# = [[ | | ????????????????????????# #?????????#### # | | ???????????????????????? ???????????## # # | | ???????????????????????? ????????????######## | | ???????????????????????? g ???????????????????# | | ???????????????????????? ???????????????????# | | ??????????????????????? = ?????????????????## | | ???????????????????????# =%*?????????????????# | | ???????????????????????# ?????????????????### # | | ???????????????????????# ##????????????????????## | | ???????????????????????###???????????????????????? | | ?????????????????????????????????????????????????? | | ?????????????????????????????????????????????????? | | ?????????????????????????????????????????????????? | | ?????????????????????????????????????????????????? | | ?????????????????????????????????????????????????? | | ?????????????????????????????????????????????????? | | | | | | | | | | | | | | | +----------------------------------------------------+ Best States ------------- Heat Dissipation 28 Energy Generation 14 Energy Capacity 250 Matter Stores 300 Matter Capacity 300 Sight Range 16 Terrain Scan Density 10 Evasion (%) 62 Targeting Accuracy 12 Item Schematics ----------------- None Robot Schematics ------------------ None Fabricated ------------ Nothing Alien Tech Used ----------------- None Achievements -------------- None Challenges ------------ None Game ------ Seed HeavyDrainedSlayer Manual? 0 Play Time 00:19:46 Cumulative 34.2 hours Start 2024.07.15 @ 23:45:20 End 2024.07.16 @ 00:04:35 Sessions 1 Manual Loads 0 Difficulty Rogue Special Mode None Game No. 73 Rogue 7 Adventurer 66 Explorer 0 Win Type - Total 0 Types 0/0/0/0/0/0/0/0/0 Lore% 27 Gallery% 30 Achievement% 29 Wizard Run 0 Options --------- Layout 0 ASCII 0 Keyboard 0 Movement Mouse Keybinds 0 Fullscreen 1 Font 24/Smallcaps Map View 76x50 Zoom Use 0% Tactical HUD 0 Map Filters NONE Filters NONE Steam 1 RUN: 06baa55c-daff-4078-ac74-7925020f0480